Workbook

Sheet Calendar
B1: =theYear -> 2013
B2: =Month01 -> JANVIER | H2: Mat | I2: Midi | J2: Soir | K2: Total | N2: =Month02 -> FEVRIER | T2: Mat | U2: Midi | V2: Soir | W2: Total | Z2: =Month03 -> MARS | AF2: Mat | AG2: Midi | AH2: Soir | AI2: Total
A3: =Date2JDN(theYear,1,1) -> 2456293.5 | B3: =INDEX(TheDays,MOD(A3+0.5,7)+1) -> Ma | C3: =JDN2Date(A3,"D") -> 1 | D3: 1 | E3: Nouvel An | K3: =SUM(H3,I3,J3) -> 0 | M3: =LOOKUP(31,C3:C33,January)+1 -> 2456324.5 | N3: =INDEX(TheDays,MOD(M3+0.5,7)+1) -> Ve | O3: =JDN2Date(_Feb01,"D") -> 1 | P3: =_Feb01-_Jan01+1 -> 32 | W3: =SUM(T3,U3,V3) -> 0 | Y3: =LOOKUP(FebDays,O3:O31,February)+1 -> 2456352.5 | Z3: =INDEX(TheDays,MOD(_Mar01+0.5,7)+1) -> Ve | AA3: =JDN2Date(_Mar01,"D") -> 1 | AB3: =_Mar01-_Jan01+1 -> 60 | AI3: =SUM(AF3,AG3,AH3) -> 0
A4: =A3+1 -> 2456294.5 | B4: =IF(C4="","",INDEX(TheDays,MOD(A4+0.5,7)+1)) -> Me | C4: =IF(OR(C3=31,C3="",JDN2Date(A4,"M")<>1),"",JDN2Date(A4,"D")) -> 2 | D4: =IF(C4="","",D3+1) -> 2 | K4: 0 | M4: =_Feb01+1 -> 2456325.5 | N4: =IF(O4="","",INDEX(TheDays,MOD(M4+0.5,7)+1)) -> Sa | O4: =IF(OR(O3=FebDays,O3="",JDN2Date(M4,"M")<>2),"",JDN2Date(M4,"D")) -> 2 | P4: =IF(O4="","",P3+1) -> 33 | W4: 0 | Y4: =_Mar01+1 -> 2456353.5 | Z4: =IF(AA4="","",INDEX(TheDays,MOD(Y4+0.5,7)+1)) -> Sa | AA4: =IF(OR(AA3=31,AA3="",JDN2Date(Y4,"M")<>3),"",JDN2Date(Y4,"D")) -> 2 | AB4: =IF(AA4="","",AB3+1) -> 61 | AI4: 0
A5: =A4+1 -> 2456295.5 | B5: =IF(C5="","",INDEX(TheDays,MOD(A5+0.5,7)+1)) -> Je | C5: =IF(OR(C4=31,C4="",JDN2Date(A5,"M")<>1),"",JDN2Date(A5,"D")) -> 3 | D5: =IF(C5="","",D4+1) -> 3 | K5: 0 | M5: =M4+1 -> 2456326.5 | N5: =IF(O5="","",INDEX(TheDays,MOD(M5+0.5,7)+1)) -> Di | O5: =IF(OR(O4=FebDays,O4="",JDN2Date(M5,"M")<>2),"",JDN2Date(M5,"D")) -> 3 | P5: =IF(O5="","",P4+1) -> 34 | W5: 0 | Y5: =Y4+1 -> 2456354.5 | Z5: Di | AA5: =IF(OR(AA4=31,AA4="",JDN2Date(Y5,"M")<>3),"",JDN2Date(Y5,"D")) -> 3 | AB5: =IF(AA5="","",AB4+1) -> 62 | AI5: 0
A6: 2456296.5 | B6: Ve | C6: 4 | D6: 4 | K6: 0 | M6: =M5+1 -> 2456327.5 | N6: Lu | O6: 4 | P6: 35 | S6: 5 | W6: 0 | Y6: =Y5+1 -> 2456355.5 | Z6: Lu | AA6: 4 | AB6: 63 | AE6: 9 | AI6: 0
A7: 2456297.5 | B7: Sa | C7: 5 | D7: 5 | K7: 0 | M7: 2456328.5 | N7: Ma | O7: 5 | P7: 36 | W7: 0 | Y7: 2456356.5 | Z7: Ma | AA7: 5 | AB7: 64 | AI7: 0
A8: 2456298.5 | B8: Di | C8: 6 | D8: 6 | K8: 0 | M8: 2456329.5 | N8: Me | O8: 6 | P8: 37 | W8: 0 | Y8: 2456357.5 | Z8: Me | AA8: 6 | AB8: 65 | AI8: 0
A9: 2456299.5 | B9: Lu | C9: 7 | D9: 7 | G9: 1 | K9: 0 | M9: 2456330.5 | N9: Je | O9: 7 | P9: 38 | W9: 0 | Y9: 2456358.5 | Z9: Je | AA9: 7 | AB9: 66 | AI9: 0
A10: 2456300.5 | B10: Ma | C10: 8 | D10: 8 | K10: 0 | M10: 2456331.5 | N10: Ve | O10: 8 | P10: 39 | W10: 0 | Y10: 2456359.5 | Z10: Ve | AA10: 8 | AB10: 67 | AI10: 0
A11: 2456301.5 | B11: Me | C11: 9 | D11: 9 | K11: 0 | M11: 2456332.5 | N11: Sa | O11: 9 | P11: 40 | W11: 0 | Y11: 2456360.5 | Z11: Sa | AA11: 9 | AB11: 68 | AI11: 0
A12: 2456302.5 | B12: Je | C12: 10 | D12: 10 | K12: 0 | M12: 2456333.5 | N12: Di | O12: 10 | P12: 41 | W12: 0 | Y12: 2456361.5 | Z12: Di | AA12: 10 | AB12: 69 | AI12: 0
A13: 2456303.5 | B13: Ve | C13: 11 | D13: 11 | K13: 0 | M13: 2456334.5 | N13: Lu | O13: 11 | P13: 42 | S13: 6 | W13: 0 | Y13: 2456362.5 | Z13: Lu | AA13: 11 | AB13: 70 | AE13: 10 | AI13: 0
A14: 2456304.5 | B14: Sa | C14: 12 | D14: 12 | K14: 0 | M14: 2456335.5 | N14: Ma | O14: 12 | P14: 43 | W14: 0 | Y14: 2456363.5 | Z14: Ma | AA14: 12 | AB14: 71 | AI14: 0
A15: 2456305.5 | B15: Di | C15: 13 | D15: 13 | K15: 0 | M15: 2456336.5 | N15: Me | O15: 13 | P15: 44 | W15: 0 | Y15: 2456364.5 | Z15: Me | AA15: 13 | AB15: 72 | AI15: 0
A16: 2456306.5 | B16: Lu | C16: 14 | D16: 14 | G16: 2 | K16: 0 | M16: 2456337.5 | N16: Je | O16: 14 | P16: 45 | W16: 0 | Y16: 2456365.5 | Z16: Je | AA16: 14 | AB16: 73 | AI16: 0
A17: 2456307.5 | B17: Ma | C17: 15 | D17: 15 | K17: 0 | M17: 2456338.5 | N17: Ve | O17: 15 | P17: 46 | W17: 0 | Y17: 2456366.5 | Z17: Ve | AA17: 15 | AB17: 74 | AI17: 0
A18: 2456308.5 | B18: Me | C18: 16 | D18: 16 | K18: 0 | M18: 2456339.5 | N18: Sa | O18: 16 | P18: 47 | W18: 0 | Y18: 2456367.5 | Z18: Sa | AA18: 16 | AB18: 75 | AI18: 0
A19: 2456309.5 | B19: Je | C19: 17 | D19: 17 | K19: 0 | M19: 2456340.5 | N19: Di | O19: 17 | P19: 48 | W19: 0 | Y19: 2456368.5 | Z19: Di | AA19: 17 | AB19: 76 | AI19: 0
A20: 2456310.5 | B20: Ve | C20: 18 | D20: 18 | K20: 0 | M20: 2456341.5 | N20: Lu | O20: 18 | P20: 49 | S20: 7 | W20: 0 | Y20: 2456369.5 | Z20: Lu | AA20: 18 | AB20: 77 | AE20: 11 | AI20: 0
A21: 2456311.5 | B21: Sa | C21: 19 | D21: 19 | K21: 0 | M21: 2456342.5 | N21: Ma | O21: 19 | P21: 50 | W21: 0 | Y21: 2456370.5 | Z21: Ma | AA21: 19 | AB21: 78 | AI21: 0
A22: 2456312.5 | B22: Di | C22: 20 | D22: 20 | K22: 0 | M22: 2456343.5 | N22: Me | O22: 20 | P22: 51 | W22: 0 | Y22: 2456371.5 | Z22: Me | AA22: 20 | AB22: 79 | AI22: 0
A23: 2456313.5 | B23: Lu | C23: 21 | D23: 21 | G23: 3 | K23: 0 | M23: 2456344.5 | N23: Je | O23: 21 | P23: 52 | W23: 0 | Y23: 2456372.5 | Z23: Je | AA23: 21 | AB23: 80 | AI23: 0
A24: 2456314.5 | B24: Ma | C24: 22 | D24: 22 | K24: 0 | M24: 2456345.5 | N24: Ve | O24: 22 | P24: 53 | W24: 0 | Y24: 2456373.5 | Z24: Ve | AA24: 22 | AB24: 81 | AI24: 0
A25: 2456315.5 | B25: Me | C25: 23 | D25: 23 | K25: 0 | M25: 2456346.5 | N25: Sa | O25: 23 | P25: 54 | W25: 0 | Y25: 2456374.5 | Z25: Sa | AA25: 23 | AB25: 82 | AI25: 0
A26: 2456316.5 | B26: Je | C26: 24 | D26: 24 | K26: 0 | M26: 2456347.5 | N26: Di | O26: 24 | P26: 55 | W26: 0 | Y26: 2456375.5 | Z26: Di | AA26: 24 | AB26: 83 | AI26: 0
A27: 2456317.5 | B27: Ve | C27: 25 | D27: 25 | K27: 0 | M27: 2456348.5 | N27: Lu | O27: 25 | P27: 56 | S27: 8 | W27: 0 | Y27: 2456376.5 | Z27: Lu | AA27: 25 | AB27: 84 | AE27: 12 | AI27: 0
A28: 2456318.5 | B28: Sa | C28: 26 | D28: 26 | K28: 0 | M28: 2456349.5 | N28: Ma | O28: 26 | P28: 57 | W28: 0 | Y28: 2456377.5 | Z28: Ma | AA28: 26 | AB28: 85 | AI28: 0
A29: 2456319.5 | B29: Di | C29: 27 | D29: 27 | K29: 0 | M29: 2456350.5 | N29: Me | O29: 27 | P29: 58 | W29: 0 | Y29: 2456378.5 | Z29: Me | AA29: 27 | AB29: 86 | AI29: 0
A30: 2456320.5 | B30: Lu | C30: 28 | D30: 28 | G30: 4 | K30: 0 | M30: 2456351.5 | N30: Je | O30: 28 | P30: 59 | W30: 0 | Y30: 2456379.5 | Z30: Je | AA30: 28 | AB30: 87 | AI30: 0
A31: 2456321.5 | B31: Ma | C31: 29 | D31: 29 | K31: 0 | M31: 2456352.5 | W31: 0 | Y31: 2456380.5 | Z31: Ve | AA31: 29 | AB31: 88 | AI31: 0
A32: 2456322.5 | B32: Me | C32: 30 | D32: 30 | K32: 0 | W32: 0 | Y32: 2456381.5 | Z32: Sa | AA32: 30 | AB32: 89 | AI32: 0
A33: =A32+1 -> 2456323.5 | B33: Je | C33: 31 | D33: 31 | K33: 0 | W33: 0 | Y33: 2456382.5 | Z33: Di | AA33: 31 | AB33: 90 | AC33: Pâques | AI33: 0
B34: =theYear -> 2013 | I34: Total | K34: =SUM(K3:K33) -> 0 | U34: Total | W34: =SUM(W3:W33) -> 0 | AG34: Total | AI34: =SUM(AI3:AI33) -> 0
B36: =Month04 -> AVRIL | H36: Mat | I36: Midi | J36: Soir | K36: Total | N36: =Month05 -> MAI | T36: Mat | U36: Midi | V36: Soir | W36: Total | Z36: =Month06 -> JUIN | AF36: Mat | AG36: Midi | AH36: Soir | AI36: Total
A37: =LOOKUP(31,AA3:AA33,March)+1 -> 2456383.5 | B37: =IF(C37="","",INDEX(TheDays,MOD(A37+0.5,7)+1)) -> Lu | C37: =JDN2Date(_Apr01,"D") -> 1 | D37: =_Apr01-_Jan01+1 -> 91 | E37: Lundi de Pâques | G37: 13 | K37: =SUM(H37,I37,J37) -> 0 | M37: =LOOKUP(30,C37:C67,April)+1 -> 2456413.5 | N37: =IF(O37="","",INDEX(TheDays,MOD(M37+0.5,7)+1)) -> Me | O37: =JDN2Date(_May01,"D") -> 1 | P37: =_May01-_Jan01+1 -> 121 | Q37: Fête du travail | W37: =SUM(T37,U37,V37) -> 0 | Y37: =LOOKUP(31,O37:O67,May)+1 -> 2456444.5 | Z37: =INDEX(TheDays,MOD(Y37+0.5,7)+1) -> Sa | AA37: =JDN2Date(_Jun01,"D") -> 1 | AB37: =_Jun01-_Jan01+1 -> 152 | AI37: =SUM(AF37,AG37,AH37) -> 0
A38: =_Apr01+1 -> 2456384.5 | B38: =IF(C38="","",INDEX(TheDays,MOD(A38+0.5,7)+1)) -> Ma | C38: =IF(OR(C37=30,C37="",JDN2Date(A38,"M")<>4),"",JDN2Date(A38,"D")) -> 2 | D38: =IF(C38="","",D37+1) -> 92 | K38: 0 | M38: =_May01+1 -> 2456414.5 | N38: =IF(O38="","",INDEX(TheDays,MOD(M38+0.5,7)+1)) -> Je | O38: =IF(OR(O37=31,O37="",JDN2Date(M38,"M")<>5),"",JDN2Date(M38,"D")) -> 2 | P38: =IF(O38="","",P37+1) -> 122 | W38: 0 | Y38: =_Jun01+1 -> 2456445.5 | Z38: =IF(AA38="","",INDEX(TheDays,MOD(Y38+0.5,7)+1)) -> Di | AA38: =IF(OR(AA37=30,AA37="",JDN2Date(Y38,"M")<>6),"",JDN2Date(Y38,"D")) -> 2 | AB38: =IF(AA38="","",AB37+1) -> 153 | AI38: 0
A39: =A38+1 -> 2456385.5 | B39: =IF(C39="","",INDEX(TheDays,MOD(A39+0.5,7)+1)) -> Me | C39: =IF(OR(C38=30,C38="",JDN2Date(A39,"M")<>4),"",JDN2Date(A39,"D")) -> 3 | D39: 93 | K39: 0 | M39: =M38+1 -> 2456415.5 | N39: Ve | O39: =IF(OR(O38=31,O38="",JDN2Date(M39,"M")<>5),"",JDN2Date(M39,"D")) -> 3 | P39: 123 | W39: 0 | Y39: =Y38+1 -> 2456446.5 | Z39: Lu | AA39: =IF(OR(AA38=30,AA38="",JDN2Date(Y39,"M")<>6),"",JDN2Date(Y39,"D")) -> 3 | AB39: 154 | AE39: 22 | AI39: 0
A40: =A39+1 -> 2456386.5 | B40: Je | C40: 4 | D40: 94 | K40: 0 | M40: =M39+1 -> 2456416.5 | N40: Sa | O40: 4 | P40: 124 | W40: 0 | Y40: =Y39+1 -> 2456447.5 | Z40: Ma | AA40: 4 | AB40: 155 | AI40: 0
A41: 2456387.5 | B41: Ve | C41: 5 | D41: 95 | K41: 0 | M41: 2456417.5 | N41: Di | O41: 5 | P41: 125 | W41: 0 | Y41: 2456448.5 | Z41: Me | AA41: 5 | AB41: 156 | AI41: 0
A42: 2456388.5 | B42: Sa | C42: 6 | D42: 96 | K42: 0 | M42: 2456418.5 | N42: Lu | O42: 6 | P42: 126 | S42: 18 | W42: 0 | Y42: 2456449.5 | Z42: Je | AA42: 6 | AB42: 157 | AI42: 0
A43: 2456389.5 | B43: Di | C43: 7 | D43: 97 | K43: 0 | M43: 2456419.5 | N43: Ma | O43: 7 | P43: 127 | W43: 0 | Y43: 2456450.5 | Z43: Ve | AA43: 7 | AB43: 158 | AI43: 0
A44: 2456390.5 | B44: Lu | C44: 8 | D44: 98 | G44: 14 | K44: 0 | M44: 2456420.5 | N44: Me | O44: 8 | P44: 128 | Q44: Victoire 1945 | W44: 0 | Y44: 2456451.5 | Z44: Sa | AA44: 8 | AB44: 159 | AI44: 0
A45: 2456391.5 | B45: Ma | C45: 9 | D45: 99 | K45: 0 | M45: 2456421.5 | N45: Je | O45: 9 | P45: 129 | Q45: Ascension | W45: 0 | Y45: 2456452.5 | Z45: Di | AA45: 9 | AB45: 160 | AI45: 0
A46: 2456392.5 | B46: Me | C46: 10 | D46: 100 | K46: 0 | M46: 2456422.5 | N46: Ve | O46: 10 | P46: 130 | W46: 0 | Y46: 2456453.5 | Z46: Lu | AA46: 10 | AB46: 161 | AE46: 23 | AI46: 0
A47: 2456393.5 | B47: Je | C47: 11 | D47: 101 | K47: 0 | M47: 2456423.5 | N47: Sa | O47: 11 | P47: 131 | W47: 0 | Y47: 2456454.5 | Z47: Ma | AA47: 11 | AB47: 162 | AI47: 0
A48: 2456394.5 | B48: Ve | C48: 12 | D48: 102 | K48: 0 | M48: 2456424.5 | N48: Di | O48: 12 | P48: 132 | W48: 0 | Y48: 2456455.5 | Z48: Me | AA48: 12 | AB48: 163 | AI48: 0
A49: 2456395.5 | B49: Sa | C49: 13 | D49: 103 | K49: 0 | M49: 2456425.5 | N49: Lu | O49: 13 | P49: 133 | S49: 19 | W49: 0 | Y49: 2456456.5 | Z49: Je | AA49: 13 | AB49: 164 | AI49: 0
A50: 2456396.5 | B50: Di | C50: 14 | D50: 104 | K50: 0 | M50: 2456426.5 | N50: Ma | O50: 14 | P50: 134 | W50: 0 | Y50: 2456457.5 | Z50: Ve | AA50: 14 | AB50: 165 | AI50: 0
A51: 2456397.5 | B51: Lu | C51: 15 | D51: 105 | G51: 15 | K51: 0 | M51: 2456427.5 | N51: Me | O51: 15 | P51: 135 | W51: 0 | Y51: 2456458.5 | Z51: Sa | AA51: 15 | AB51: 166 | AI51: 0
A52: 2456398.5 | B52: Ma | C52: 16 | D52: 106 | K52: 0 | M52: 2456428.5 | N52: Je | O52: 16 | P52: 136 | W52: 0 | Y52: 2456459.5 | Z52: Di | AA52: 16 | AB52: 167 | AI52: 0
A53: 2456399.5 | B53: Me | C53: 17 | D53: 107 | K53: 0 | M53: 2456429.5 | N53: Ve | O53: 17 | P53: 137 | W53: 0 | Y53: 2456460.5 | Z53: Lu | AA53: 17 | AB53: 168 | AE53: 24 | AI53: 0
A54: 2456400.5 | B54: Je | C54: 18 | D54: 108 | K54: 0 | M54: 2456430.5 | N54: Sa | O54: 18 | P54: 138 | W54: 0 | Y54: 2456461.5 | Z54: Ma | AA54: 18 | AB54: 169 | AI54: 0
A55: 2456401.5 | B55: Ve | C55: 19 | D55: 109 | K55: 0 | M55: 2456431.5 | N55: Di | O55: 19 | P55: 139 | Q55: Pentecôte | W55: 0 | Y55: 2456462.5 | Z55: Me | AA55: 19 | AB55: 170 | AI55: 0
A56: 2456402.5 | B56: Sa | C56: 20 | D56: 110 | K56: 0 | M56: 2456432.5 | N56: Lu | O56: 20 | P56: 140 | Q56: Lundi de Pentecôte | S56: 20 | W56: 0 | Y56: 2456463.5 | Z56: Je | AA56: 20 | AB56: 171 | AI56: 0
A57: 2456403.5 | B57: Di | C57: 21 | D57: 111 | K57: 0 | M57: 2456433.5 | N57: Ma | O57: 21 | P57: 141 | W57: 0 | Y57: 2456464.5 | Z57: Ve | AA57: 21 | AB57: 172 | AI57: 0
A58: 2456404.5 | B58: Lu | C58: 22 | D58: 112 | G58: 16 | K58: 0 | M58: 2456434.5 | N58: Me | O58: 22 | P58: 142 | W58: 0 | Y58: 2456465.5 | Z58: Sa | AA58: 22 | AB58: 173 | AI58: 0
A59: 2456405.5 | B59: Ma | C59: 23 | D59: 113 | K59: 0 | M59: 2456435.5 | N59: Je | O59: 23 | P59: 143 | W59: 0 | Y59: 2456466.5 | Z59: Di | AA59: 23 | AB59: 174 | AI59: 0
A60: 2456406.5 | B60: Me | C60: 24 | D60: 114 | K60: 0 | M60: 2456436.5 | N60: Ve | O60: 24 | P60: 144 | W60: 0 | Y60: 2456467.5 | Z60: Lu | AA60: 24 | AB60: 175 | AE60: 25 | AI60: 0
A61: 2456407.5 | B61: Je | C61: 25 | D61: 115 | K61: 0 | M61: 2456437.5 | N61: Sa | O61: 25 | P61: 145 | W61: 0 | Y61: 2456468.5 | Z61: Ma | AA61: 25 | AB61: 176 | AI61: 0
A62: 2456408.5 | B62: Ve | C62: 26 | D62: 116 | K62: 0 | M62: 2456438.5 | N62: Di | O62: 26 | P62: 146 | W62: 0 | Y62: 2456469.5 | Z62: Me | AA62: 26 | AB62: 177 | AI62: 0
A63: 2456409.5 | B63: Sa | C63: 27 | D63: 117 | K63: 0 | M63: 2456439.5 | N63: Lu | O63: 27 | P63: 147 | S63: 21 | W63: 0 | Y63: 2456470.5 | Z63: Je | AA63: 27 | AB63: 178 | AI63: 0
A64: 2456410.5 | B64: Di | C64: 28 | D64: 118 | K64: 0 | M64: 2456440.5 | N64: Ma | O64: 28 | P64: 148 | W64: 0 | Y64: 2456471.5 | Z64: Ve | AA64: 28 | AB64: 179 | AI64: 0
A65: 2456411.5 | B65: Lu | C65: 29 | D65: 119 | G65: 17 | K65: 0 | M65: 2456441.5 | N65: Me | O65: 29 | P65: 149 | W65: 0 | Y65: 2456472.5 | Z65: Sa | AA65: 29 | AB65: 180 | AI65: 0
A66: 2456412.5 | B66: Ma | C66: 30 | D66: 120 | K66: 0 | M66: 2456442.5 | N66: Je | O66: 30 | P66: 150 | W66: 0 | Y66: 2456473.5 | Z66: Di | AA66: 30 | AB66: 181 | AI66: 0
K67: 0 | M67: 2456443.5 | N67: Ve | O67: 31 | P67: 151 | W67: 0 | AI67: 0
B68: =theYear -> 2013 | I68: Total | K68: =SUM(K37:K67) -> 0 | U68: Total | W68: =SUM(W37:W67) -> 0 | AG68: Total | AI68: =SUM(AI37:AI67) -> 0
B70: =Month07 -> JUILLET | H70: Mat | I70: Midi | J70: Soir | K70: Total | N70: =Month08 -> AOUT | T70: Mat | U70: Midi | V70: Soir | W70: Total | Z70: =Month09 -> SEPTEMBRE | AF70: Mat | AG70: Midi | AH70: Soir | AI70: Total
A71: =LOOKUP(30,AA37:AA66,June)+1 -> 2456474.5 | B71: =INDEX(TheDays,MOD(A71+0.5,7)+1) -> Lu | C71: =JDN2Date(_Jul01,"D") -> 1 | D71: =_Jul01-_Jan01+1 -> 182 | G71: 26 | K71: =SUM(H71,I71,J71) -> 0 | M71: =LOOKUP(31,C71:C101,July)+1 -> 2456505.5 | N71: =INDEX(TheDays,MOD(M71+0.5,7)+1) -> Je | O71: =JDN2Date(_Aug01,"D") -> 1 | P71: =_Aug01-_Jan01+1 -> 213 | W71: =SUM(T71,U71,V71) -> 0 | Y71: =LOOKUP(31,O71:O101,August)+1 -> 2456536.5 | Z71: =INDEX(TheDays,MOD(Y71+0.5,7)+1) -> Di | AA71: =JDN2Date(_Sep01,"D") -> 1 | AB71: =_Sep01-_Jan01+1 -> 244 | AI71: =SUM(AF71,AG71,AH71) -> 0
A72: =_Jul01+1 -> 2456475.5 | B72: =IF(C72="","",INDEX(TheDays,MOD(A72+0.5,7)+1)) -> Ma | C72: =IF(OR(C71=31,C71="",JDN2Date(A72,"M")<>7),"",JDN2Date(A72,"D")) -> 2 | D72: =IF(C72="","",D71+1) -> 183 | K72: 0 | M72: =_Aug01+1 -> 2456506.5 | N72: =IF(O72="","",INDEX(TheDays,MOD(M72+0.5,7)+1)) -> Ve | O72: =IF(OR(O71=31,O71="",JDN2Date(M72,"M")<>8),"",JDN2Date(M72,"D")) -> 2 | P72: =IF(O72="","",P71+1) -> 214 | W72: 0 | Y72: =_Sep01+1 -> 2456537.5 | Z72: =IF(AA72="","",INDEX(TheDays,MOD(Y72+0.5,7)+1)) -> Lu | AA72: =IF(OR(AA71=30,AA71="",JDN2Date(Y72,"M")<>9),"",JDN2Date(Y72,"D")) -> 2 | AB72: =IF(AA72="","",AB71+1) -> 245 | AE72: 35 | AI72: 0
A73: =A72+1 -> 2456476.5 | B73: Me | C73: =IF(OR(C72=31,C72="",JDN2Date(A73,"M")<>7),"",JDN2Date(A73,"D")) -> 3 | D73: 184 | K73: 0 | M73: =M72+1 -> 2456507.5 | N73: Sa | O73: =IF(OR(O72=31,O72="",JDN2Date(M73,"M")<>8),"",JDN2Date(M73,"D")) -> 3 | P73: 215 | W73: 0 | Y73: =Y72+1 -> 2456538.5 | Z73: Ma | AA73: =IF(OR(AA72=30,AA72="",JDN2Date(Y73,"M")<>9),"",JDN2Date(Y73,"D")) -> 3 | AB73: =IF(AA73="","",AB72+1) -> 246 | AI73: 0
A74: 2456477.5 | B74: Je | C74: 4 | D74: 185 | K74: 0 | M74: =M73+1 -> 2456508.5 | N74: Di | O74: 4 | P74: 216 | W74: 0 | Y74: 2456539.5 | Z74: Me | AA74: 4 | AB74: 247 | AI74: 0
A75: 2456478.5 | B75: Ve | C75: 5 | D75: 186 | K75: 0 | M75: 2456509.5 | N75: Lu | O75: 5 | P75: 217 | S75: 31 | W75: 0 | Y75: 2456540.5 | Z75: Je | AA75: 5 | AB75: 248 | AI75: 0
A76: 2456479.5 | B76: Sa | C76: 6 | D76: 187 | K76: 0 | M76: 2456510.5 | N76: Ma | O76: 6 | P76: 218 | W76: 0 | Y76: 2456541.5 | Z76: Ve | AA76: 6 | AB76: 249 | AI76: 0
A77: 2456480.5 | B77: Di | C77: 7 | D77: 188 | K77: 0 | M77: 2456511.5 | N77: Me | O77: 7 | P77: 219 | W77: 0 | Y77: 2456542.5 | Z77: Sa | AA77: 7 | AB77: 250 | AI77: 0
A78: 2456481.5 | B78: Lu | C78: 8 | D78: 189 | G78: 27 | K78: 0 | M78: 2456512.5 | N78: Je | O78: 8 | P78: 220 | W78: 0 | Y78: 2456543.5 | Z78: Di | AA78: 8 | AB78: 251 | AI78: 0
A79: 2456482.5 | B79: Ma | C79: 9 | D79: 190 | K79: 0 | M79: 2456513.5 | N79: Ve | O79: 9 | P79: 221 | W79: 0 | Y79: 2456544.5 | Z79: Lu | AA79: 9 | AB79: 252 | AE79: 36 | AI79: 0
A80: 2456483.5 | B80: Me | C80: 10 | D80: 191 | K80: 0 | M80: 2456514.5 | N80: Sa | O80: 10 | P80: 222 | W80: 0 | Y80: 2456545.5 | Z80: Ma | AA80: 10 | AB80: 253 | AI80: 0
A81: 2456484.5 | B81: Je | C81: 11 | D81: 192 | K81: 0 | M81: 2456515.5 | N81: Di | O81: 11 | P81: 223 | W81: 0 | Y81: 2456546.5 | Z81: Me | AA81: 11 | AB81: 254 | AI81: 0
A82: 2456485.5 | B82: Ve | C82: 12 | D82: 193 | K82: 0 | M82: 2456516.5 | N82: Lu | O82: 12 | P82: 224 | S82: 32 | W82: 0 | Y82: 2456547.5 | Z82: Je | AA82: 12 | AB82: 255 | AI82: 0
A83: 2456486.5 | B83: Sa | C83: 13 | D83: 194 | K83: 0 | M83: 2456517.5 | N83: Ma | O83: 13 | P83: 225 | W83: 0 | Y83: 2456548.5 | Z83: Ve | AA83: 13 | AB83: 256 | AI83: 0
A84: 2456487.5 | B84: Di | C84: 14 | D84: 195 | E84: Fête Nationale | K84: 0 | M84: 2456518.5 | N84: Me | O84: 14 | P84: 226 | W84: 0 | Y84: 2456549.5 | Z84: Sa | AA84: 14 | AB84: 257 | AI84: 0
A85: 2456488.5 | B85: Lu | C85: 15 | D85: 196 | G85: 28 | K85: 0 | M85: 2456519.5 | N85: Je | O85: 15 | P85: 227 | Q85: Assomption | W85: 0 | Y85: 2456550.5 | Z85: Di | AA85: 15 | AB85: 258 | AI85: 0
A86: 2456489.5 | B86: Ma | C86: 16 | D86: 197 | K86: 0 | M86: 2456520.5 | N86: Ve | O86: 16 | P86: 228 | W86: 0 | Y86: 2456551.5 | Z86: Lu | AA86: 16 | AB86: 259 | AE86: 37 | AI86: 0
A87: 2456490.5 | B87: Me | C87: 17 | D87: 198 | K87: 0 | M87: 2456521.5 | N87: Sa | O87: 17 | P87: 229 | W87: 0 | Y87: 2456552.5 | Z87: Ma | AA87: 17 | AB87: 260 | AI87: 0
A88: 2456491.5 | B88: Je | C88: 18 | D88: 199 | K88: 0 | M88: 2456522.5 | N88: Di | O88: 18 | P88: 230 | W88: 0 | Y88: 2456553.5 | Z88: Me | AA88: 18 | AB88: 261 | AI88: 0
A89: 2456492.5 | B89: Ve | C89: 19 | D89: 200 | K89: 0 | M89: 2456523.5 | N89: Lu | O89: 19 | P89: 231 | S89: 33 | W89: 0 | Y89: 2456554.5 | Z89: Je | AA89: 19 | AB89: 262 | AI89: 0
A90: 2456493.5 | B90: Sa | C90: 20 | D90: 201 | K90: 0 | M90: 2456524.5 | N90: Ma | O90: 20 | P90: 232 | W90: 0 | Y90: 2456555.5 | Z90: Ve | AA90: 20 | AB90: 263 | AI90: 0
A91: 2456494.5 | B91: Di | C91: 21 | D91: 202 | K91: 0 | M91: 2456525.5 | N91: Me | O91: 21 | P91: 233 | W91: 0 | Y91: 2456556.5 | Z91: Sa | AA91: 21 | AB91: 264 | AI91: 0
A92: 2456495.5 | B92: Lu | C92: 22 | D92: 203 | G92: 29 | K92: 0 | M92: 2456526.5 | N92: Je | O92: 22 | P92: 234 | W92: 0 | Y92: 2456557.5 | Z92: Di | AA92: 22 | AB92: 265 | AI92: 0
A93: 2456496.5 | B93: Ma | C93: 23 | D93: 204 | K93: 0 | M93: 2456527.5 | N93: Ve | O93: 23 | P93: 235 | W93: 0 | Y93: 2456558.5 | Z93: Lu | AA93: 23 | AB93: 266 | AE93: 38 | AI93: 0
A94: 2456497.5 | B94: Me | C94: 24 | D94: 205 | K94: 0 | M94: 2456528.5 | N94: Sa | O94: 24 | P94: 236 | W94: 0 | Y94: 2456559.5 | Z94: Ma | AA94: 24 | AB94: 267 | AI94: 0
A95: 2456498.5 | B95: Je | C95: 25 | D95: 206 | K95: 0 | M95: 2456529.5 | N95: Di | O95: 25 | P95: 237 | W95: 0 | Y95: 2456560.5 | Z95: Me | AA95: 25 | AB95: 268 | AI95: 0
A96: 2456499.5 | B96: Ve | C96: 26 | D96: 207 | K96: 0 | M96: 2456530.5 | N96: Lu | O96: 26 | P96: 238 | S96: 34 | W96: 0 | Y96: 2456561.5 | Z96: Je | AA96: 26 | AB96: 269 | AI96: 0
A97: 2456500.5 | B97: Sa | C97: 27 | D97: 208 | K97: 0 | M97: 2456531.5 | N97: Ma | O97: 27 | P97: 239 | W97: 0 | Y97: 2456562.5 | Z97: Ve | AA97: 27 | AB97: 270 | AI97: 0
A98: 2456501.5 | B98: Di | C98: 28 | D98: 209 | K98: 0 | M98: 2456532.5 | N98: Me | O98: 28 | P98: 240 | W98: 0 | Y98: 2456563.5 | Z98: Sa | AA98: 28 | AB98: 271 | AI98: 0
A99: 2456502.5 | B99: Lu | C99: 29 | D99: 210 | G99: 30 | K99: 0 | M99: 2456533.5 | N99: Je | O99: 29 | P99: 241 | W99: 0 | Y99: 2456564.5 | Z99: Di | AA99: 29 | AB99: 272 | AI99: 0
A100: 2456503.5 | B100: Ma | C100: 30 | D100: 211 | K100: 0 | M100: 2456534.5 | N100: Ve | O100: 30 | P100: 242 | W100: 0 | Y100: 2456565.5 | Z100: Lu | AA100: 30 | AB100: 273 | AE100: 39 | AI100: 0
A101: 2456504.5 | B101: Me | C101: 31 | D101: 212 | K101: 0 | M101: 2456535.5 | N101: Sa | O101: 31 | P101: 243 | W101: 0 | AI101: 0
B102: =theYear -> 2013 | I102: Total | K102: =SUM(K71:K101) -> 0 | U102: Total | W102: =SUM(W71:W101) -> 0 | AG102: Total | AI102: =SUM(AI71:AI101) -> 0
B104: =Month10 -> OCTOBRE | H104: Mat | I104: Midi | J104: Soir | K104: Total | N104: =Month11 -> NOVEMBRE | T104: Mat | U104: Midi | V104: Soir | W104: Total | Z104: =Month12 -> DECEMBRE | AF104: Mat | AG104: Midi | AH104: Soir | AI104: Total
A105: =LOOKUP(30,AA71:AA100,September)+1 -> 2456566.5 | B105: =INDEX(TheDays,MOD(A105+0.5,7)+1) -> Ma | C105: =JDN2Date(_Oct01,"D") -> 1 | D105: =_Oct01-_Jan01+1 -> 274 | K105: =SUM(H105,I105,J105) -> 0 | M105: =LOOKUP(31,C105:C135,October)+1 -> 2456597.5 | N105: =INDEX(TheDays,MOD(M105+0.5,7)+1) -> Ve | O105: =JDN2Date(_Nov01,"D") -> 1 | P105: =_Nov01-_Jan01+1 -> 305 | Q105: Toussaint | W105: =SUM(T105,U105,V105) -> 0 | Y105: =LOOKUP(31,O105:O134,November)+1 -> 2456627.5 | Z105: =INDEX(TheDays,MOD(Y105+0.5,7)+1) -> Di | AA105: =JDN2Date(_Dec01,"D") -> 1 | AB105: =_Dec01-_Jan01+1 -> 335 | AI105: =SUM(AF105,AG105,AH105) -> 0
A106: =_Oct01+1 -> 2456567.5 | B106: =IF(C106="","",INDEX(TheDays,MOD(A106+0.5,7)+1)) -> Me | C106: =IF(OR(C105=31,C105="",JDN2Date(A106,"M")<>10),"",JDN2Date(A106,"D")) -> 2 | D106: =IF(C106="","",D105+1) -> 275 | K106: 0 | M106: =_Nov01+1 -> 2456598.5 | N106: =IF(O106="","",INDEX(TheDays,MOD(M106+0.5,7)+1)) -> Sa | O106: =IF(OR(O105=31,O105="",JDN2Date(M106,"M")<>11),"",JDN2Date(M106,"D")) -> 2 | P106: =IF(O106="","",P105+1) -> 306 | W106: 0 | Y106: =_Dec01+1 -> 2456628.5 | Z106: =IF(AA106="","",INDEX(TheDays,MOD(Y106+0.5,7)+1)) -> Lu | AA106: =IF(OR(AA105=30=_Dec01+1,AA105="",JDN2Date(Y106,"M")<>12),"",JDN2Date(Y106,"D")) -> 2 | AB106: =IF(AA106="","",AB105+1) -> 336 | AE106: 48 | AI106: 0
A107: =A106+1 -> 2456568.5 | B107: Je | C107: =IF(OR(C106=31,C106="",JDN2Date(A107,"M")<>10),"",JDN2Date(A107,"D")) -> 3 | D107: =IF(C107="","",D106+1) -> 276 | K107: 0 | M107: =M106+1 -> 2456599.5 | N107: Di | O107: =IF(OR(O106=31,O106="",JDN2Date(M107,"M")<>11),"",JDN2Date(M107,"D")) -> 3 | P107: 307 | W107: 0 | Y107: =Y106+1 -> 2456629.5 | Z107: Ma | AA107: =IF(OR(AA106=30=_Dec01+1,AA106="",JDN2Date(Y107,"M")<>12),"",JDN2Date(Y107,"D")) -> 3 | AB107: =IF(AA107="","",AB106+1) -> 337 | AI107: 0
A108: =A107+1 -> 2456569.5 | B108: Ve | C108: 4 | D108: 277 | K108: 0 | M108: 2456600.5 | N108: Lu | O108: 4 | P108: 308 | S108: 44 | W108: 0 | Y108: 2456630.5 | Z108: Me | AA108: 4 | AB108: 338 | AI108: 0
A109: 2456570.5 | B109: Sa | C109: 5 | D109: 278 | K109: 0 | M109: 2456601.5 | N109: Ma | O109: 5 | P109: 309 | W109: 0 | Y109: 2456631.5 | Z109: Je | AA109: 5 | AB109: 339 | AI109: 0
A110: 2456571.5 | B110: Di | C110: 6 | D110: 279 | K110: 0 | M110: 2456602.5 | N110: Me | O110: 6 | P110: 310 | W110: 0 | Y110: 2456632.5 | Z110: Ve | AA110: 6 | AB110: 340 | AI110: 0
A111: 2456572.5 | B111: Lu | C111: 7 | D111: 280 | G111: 40 | K111: 0 | M111: 2456603.5 | N111: Je | O111: 7 | P111: 311 | W111: 0 | Y111: 2456633.5 | Z111: Sa | AA111: 7 | AB111: 341 | AI111: 0
A112: 2456573.5 | B112: Ma | C112: 8 | D112: 281 | K112: 0 | M112: 2456604.5 | N112: Ve | O112: 8 | P112: 312 | W112: 0 | Y112: 2456634.5 | Z112: Di | AA112: 8 | AB112: 342 | AI112: 0
A113: 2456574.5 | B113: Me | C113: 9 | D113: 282 | K113: 0 | M113: 2456605.5 | N113: Sa | O113: 9 | P113: 313 | W113: 0 | Y113: 2456635.5 | Z113: Lu | AA113: 9 | AB113: 343 | AE113: 49 | AI113: 0
A114: 2456575.5 | B114: Je | C114: 10 | D114: 283 | K114: 0 | M114: 2456606.5 | N114: Di | O114: 10 | P114: 314 | W114: 0 | Y114: 2456636.5 | Z114: Ma | AA114: 10 | AB114: 344 | AI114: 0
A115: 2456576.5 | B115: Ve | C115: 11 | D115: 284 | K115: 0 | M115: 2456607.5 | N115: Lu | O115: 11 | P115: 315 | Q115: Victoire 1918 | S115: 45 | W115: 0 | Y115: 2456637.5 | Z115: Me | AA115: 11 | AB115: 345 | AI115: 0
A116: 2456577.5 | B116: Sa | C116: 12 | D116: 285 | K116: 0 | M116: 2456608.5 | N116: Ma | O116: 12 | P116: 316 | W116: 0 | Y116: 2456638.5 | Z116: Je | AA116: 12 | AB116: 346 | AI116: 0
A117: 2456578.5 | B117: Di | C117: 13 | D117: 286 | K117: 0 | M117: 2456609.5 | N117: Me | O117: 13 | P117: 317 | W117: 0 | Y117: 2456639.5 | Z117: Ve | AA117: 13 | AB117: 347 | AI117: 0
A118: 2456579.5 | B118: Lu | C118: 14 | D118: 287 | G118: 41 | K118: 0 | M118: 2456610.5 | N118: Je | O118: 14 | P118: 318 | W118: 0 | Y118: 2456640.5 | Z118: Sa | AA118: 14 | AB118: 348 | AI118: 0
A119: 2456580.5 | B119: Ma | C119: 15 | D119: 288 | K119: 0 | M119: 2456611.5 | N119: Ve | O119: 15 | P119: 319 | W119: 0 | Y119: 2456641.5 | Z119: Di | AA119: 15 | AB119: 349 | AI119: 0
A120: 2456581.5 | B120: Me | C120: 16 | D120: 289 | K120: 0 | M120: 2456612.5 | N120: Sa | O120: 16 | P120: 320 | W120: 0 | Y120: 2456642.5 | Z120: Lu | AA120: 16 | AB120: 350 | AE120: 50 | AI120: 0
A121: 2456582.5 | B121: Je | C121: 17 | D121: 290 | K121: 0 | M121: 2456613.5 | N121: Di | O121: 17 | P121: 321 | W121: 0 | Y121: 2456643.5 | Z121: Ma | AA121: 17 | AB121: 351 | AI121: 0
A122: 2456583.5 | B122: Ve | C122: 18 | D122: 291 | K122: 0 | M122: 2456614.5 | N122: Lu | O122: 18 | P122: 322 | S122: 46 | W122: 0 | Y122: 2456644.5 | Z122: Me | AA122: 18 | AB122: 352 | AI122: 0
A123: 2456584.5 | B123: Sa | C123: 19 | D123: 292 | K123: 0 | M123: 2456615.5 | N123: Ma | O123: 19 | P123: 323 | W123: 0 | Y123: 2456645.5 | Z123: Je | AA123: 19 | AB123: 353 | AI123: 0
A124: 2456585.5 | B124: Di | C124: 20 | D124: 293 | K124: 0 | M124: 2456616.5 | N124: Me | O124: 20 | P124: 324 | W124: 0 | Y124: 2456646.5 | Z124: Ve | AA124: 20 | AB124: 354 | AI124: 0
A125: 2456586.5 | B125: Lu | C125: 21 | D125: 294 | G125: 42 | K125: 0 | M125: 2456617.5 | N125: Je | O125: 21 | P125: 325 | W125: 0 | Y125: 2456647.5 | Z125: Sa | AA125: 21 | AB125: 355 | AI125: 0
A126: 2456587.5 | B126: Ma | C126: 22 | D126: 295 | K126: 0 | M126: 2456618.5 | N126: Ve | O126: 22 | P126: 326 | W126: 0 | Y126: 2456648.5 | Z126: Di | AA126: 22 | AB126: 356 | AI126: 0
A127: 2456588.5 | B127: Me | C127: 23 | D127: 296 | K127: 0 | M127: 2456619.5 | N127: Sa | O127: 23 | P127: 327 | W127: 0 | Y127: 2456649.5 | Z127: Lu | AA127: 23 | AB127: 357 | AE127: 51 | AI127: 0
A128: 2456589.5 | B128: Je | C128: 24 | D128: 297 | K128: 0 | M128: 2456620.5 | N128: Di | O128: 24 | P128: 328 | W128: 0 | Y128: 2456650.5 | Z128: Ma | AA128: 24 | AB128: 358 | AI128: 0
A129: 2456590.5 | B129: Ve | C129: 25 | D129: 298 | K129: 0 | M129: 2456621.5 | N129: Lu | O129: 25 | P129: 329 | S129: 47 | W129: 0 | Y129: 2456651.5 | Z129: Me | AA129: 25 | AB129: 359 | AC129: Noël | AI129: 0
A130: 2456591.5 | B130: Sa | C130: 26 | D130: 299 | K130: 0 | M130: 2456622.5 | N130: Ma | O130: 26 | P130: 330 | W130: 0 | Y130: 2456652.5 | Z130: Je | AA130: 26 | AB130: 360 | AI130: 0
A131: 2456592.5 | B131: Di | C131: 27 | D131: 300 | K131: 0 | M131: 2456623.5 | N131: Me | O131: 27 | P131: 331 | W131: 0 | Y131: 2456653.5 | Z131: Ve | AA131: 27 | AB131: 361 | AI131: 0
A132: 2456593.5 | B132: Lu | C132: 28 | D132: 301 | G132: 43 | K132: 0 | M132: 2456624.5 | N132: Je | O132: 28 | P132: 332 | W132: 0 | Y132: 2456654.5 | Z132: Sa | AA132: 28 | AB132: 362 | AI132: 0
A133: 2456594.5 | B133: Ma | C133: 29 | D133: 302 | K133: 0 | M133: 2456625.5 | N133: Ve | O133: 29 | P133: 333 | W133: 0 | Y133: 2456655.5 | Z133: Di | AA133: 29 | AB133: 363 | AI133: 0
A134: 2456595.5 | B134: Me | C134: 30 | D134: 303 | K134: 0 | M134: 2456626.5 | N134: Sa | O134: 30 | P134: 334 | W134: 0 | Y134: 2456656.5 | Z134: Lu | AA134: 30 | AB134: 364 | AE134: 52 | AI134: 0
A135: 2456596.5 | B135: Je | C135: 31 | D135: 304 | K135: 0 | W135: 0 | Y135: 2456657.5 | Z135: Ma | AA135: 31 | AB135: 365 | AI135: 0
I136: Total | K136: =SUM(K105:K135) -> 0 | U136: Total | W136: =SUM(W105:W135) -> 0 | AG136: Total | AI136: =SUM(AI105:AI135) -> 0
P140: TOTAL ANNEE | S140: =SUM(K34,W34,AI34,K68,W68,AI68,K102,W102,AI102,K136,W136,AI136) -> 0

Sheet Data
A1: V1.6 | B1: Country | C1: France
B2: The year to compute | C2: 2013
B3: This year is a leap year | C3: =LeapYear(theYear) -> FALSE | D3: =IF(ItsaLeapYear=FALSE(),28,29) -> 28
B4: Julian to Gregorian
B5: Year | C5: 1582
B6: Month | C6: 12 | D6: 5
B7: Day | C7: 9
B8: LastJulian | C8: 2299226
B9: FirstGregorian | C9: 1582.122
B10: Greatest year | C10: 3267 | D10: 1465001
B11: Lowest year | C11: -4712 | D11: -4712
B12: Julian Easter | C12: =OrthodoxEaster(theYear) -> 2456417.5 | D12: =JDN2Date(OrthEaster) -> 2013-5-5
B13: Gregorian easter | C13: =GregorianEaster(theYear) -> 2456382.5 | D13: =JDN2Date(GregEaster) -> 2013-3-31
B14: 1st month of the year | C14: JANVIER
B15: 2nd month of the year | C15: FEVRIER
B16: 3rd month of the year | C16: MARS
B17: 4th month of the year | C17: AVRIL
B18: 5th month of the year | C18: MAI
B19: 6th month of the year | C19: JUIN
B20: 7th month of the year | C20: JUILLET
B21: 8th month of the year | C21: AOUT
B22: 9th month of the year | C22: SEPTEMBRE
B23: 10th month of the year | C23: OCTOBRE
B24: 11th month of the year | C24: NOVEMBRE
B25: 12th month of the year | C25: DECEMBRE | D25: Holiday ? | E25: From | F25: To
A26: 0 | B26: 1st day of the week | C26: Lu | D26: =FALSE() -> FALSE
A27: 1 | B27: 2nd day of the week | C27: Ma | D27: =FALSE() -> FALSE
A28: 2 | B28: 3rd day of the week | C28: Me | D28: =FALSE() -> FALSE
A29: 3 | B29: 4th day of the week | C29: Je | D29: =FALSE() -> FALSE
A30: 4 | B30: 5th day of the week | C30: Ve | D30: =FALSE() -> FALSE
A31: 5 | B31: 6th day of the week | C31: Sa | D31: =TRUE() -> TRUE | E31: 1937 | F31: =YearMax -> 3267
A32: 6 | B32: 7th day of the week | C32: Di | D32: =TRUE() -> TRUE | E32: =YearMin -> -4712 | F32: =YearMax -> 3267
A33: 0 | B33: Dummy entry | D33: =FALSE() -> FALSE
A34: =Date2JDN(theYear,1,1) -> 2456293.5 | B34: Nouvel An | C34: Nouvel An | D34: =TRUE() -> TRUE | E34: 1810 | F34: =YearMax -> 3267
A35: =Date2JDN(theYear,5,1) -> 2456413.5 | B35: Fête du travail | C35: Fête du travail | D35: =TRUE() -> TRUE | E35: 1947 | F35: 3267
A36: =Date2JDN(theYear,5,8) -> 2456420.5 | B36: Victoire 1945 | C36: Victoire 1945 | D36: =TRUE() -> TRUE | E36: 1982 | F36: 3267
A37: =Date2JDN(theYear,7,14) -> 2456487.5 | B37: Fête Nationale | C37: Fête Nationale | D37: =TRUE() -> TRUE | E37: 1880 | F37: 3267
A38: =Date2JDN(theYear,8,15) -> 2456519.5 | B38: Assomption | C38: Assomption | D38: =TRUE() -> TRUE | E38: 1802 | F38: 3267
A39: =Date2JDN(theYear,11,1) -> 2456597.5 | B39: Toussaint | C39: Toussaint | D39: =TRUE() -> TRUE | E39: 1802 | F39: 3267
A40: =Date2JDN(theYear,11,11) -> 2456607.5 | B40: Victoire 1918 | C40: Victoire 1918 | D40: =TRUE() -> TRUE | E40: 1924 | F40: 3267
A41: =Date2JDN(theYear,12,25) -> 2456651.5 | B41: Noël | C41: Noël | D41: =TRUE() -> TRUE | E41: 1802 | F41: 3267
A42: =IF(LastJulian>OrthEaster,OrthEaster,GregEaster) -> 2456382.5 | B42: Pâques | C42: Pâques | D42: =TRUE() -> TRUE | E42: 325 | F42: 3267
A43: =GregEaster+1 -> 2456383.5 | B43: Lundi de Pâques | C43: Lundi de Pâques | D43: =TRUE() -> TRUE | E43: 1886 | F43: 3267
A44: =GregEaster+39 -> 2456421.5 | B44: Ascension | C44: Ascension | D44: =TRUE() -> TRUE | E44: 1802 | F44: 3267
A45: =GregEaster+49 -> 2456431.5 | B45: Pentecôte | C45: Pentecôte | D45: =TRUE() -> TRUE | E45: 325 | F45: 3267
A46: =GregEaster+50 -> 2456432.5 | B46: Lundi de Pentecôte | C46: Lundi de Pentecôte | D46: =TRUE() -> TRUE | E46: 1886 | F46: 3267
A47: 0 | B47: Dummy entry | D47: =FALSE() -> FALSE
A48: 0 | B48: Dummy entry | D48: =FALSE() -> FALSE
A49: =Date2JDN(theYear,1,21) -> 2456313.5 | B49: Scaliger's date of death | C49: Mort de Joseph Justus Scaliger | D49: =TRUE() -> TRUE | E49: 1540 | F49: 1609
A50: =Date2JDN(theYear,8,5) -> 2456509.5 | B50: Scaliger's date of birth | C50: Naissance de Joseph Justus Scaliger | D50: =TRUE() -> TRUE | E50: 1540 | F50: 1609
A51: 0 | B51: Dummy entry | D51: =FALSE() -> FALSE
B52: New Year | C52: Nouvelle année
B53: ="Enter a year between "&YearMin&" and "&YearMax -> Enter a year between -4712 and 3267 | C53: ="Entrez une année entre "&YearMin&" et "&YearMax -> Entrez une année entre -4712 et 3267
B54: Cancel | C54: Annuler

Sheet ChritCal
A1: Fêtes chrétiennes (calendrier grégorien)
A2: Mardi Gras | B2: =GregEaster-47 -> 2456335.5 | C2: Pâques - 47
A3: Cendres | B3: =GregEaster-46 -> 2456336.5 | C3: Pâques - 46
A4: 1er Dimanche du Carême | B4: =GregEaster-42 -> 2456340.5 | C4: Pâques - 42
A5: Tridium Pascal Jeudi | B5: =GregEaster-3 -> 2456379.5 | C5: Pâques - 3
A6: Tridium Pascal Vendredi | B6: =GregEaster-2 -> 2456380.5 | C6: Pâques - 2
A7: Tridium Pascal Samedi | B7: =GregEaster-1 -> 2456381.5 | C7: Pâques - 1
A8: Pâques | B8: =GregEaster -> 2456382.5 | C8: Pâques
A9: Ascension | B9: =GregEaster+39 -> 2456421.5 | C9: Pâques + 39
A10: Pentecôte | B10: =GregEaster+49 -> 2456431.5 | C10: Pâques + 49
A11: Trinité | B11: =GregEaster+56 -> 2456438.5 | C11: Pâques + 56
A12: Fête-Dieu | B12: =GregEaster+63 -> 2456445.5 | C12: Pâques + 63
A13: Sacré-Cœur | B13: =GregEaster+68 -> 2456450.5 | C13: Pâques + 68
A14: Marie, Mère de Dieu | B14: =Date2JDN(theYear,1,1) -> 2456293.5 | C14: 1er janvier
A15: Epiphanie | B15: =Date2JDN(theYear,1,6) -> 2456298.5 | C15: 6 janvier …
B16: =Date2JDN(theYear,1,2)+6-MOD(Date2JDN(theYear,1,2)+0.5,7) -> 2456298.5 | C16: … ou dimanche entre 2 et 6 janvier
A17: St Joseph | B17: =Date2JDN(theYear,3,19)-(MOD(Date2JDN(theYear,3,19)+0.5,7)=6) -> 2456370.5 | C17: 19 mars (ou 18 si 19 = dimanche)
A18: Annonciation | B18: =IF(GregEaster<Date2JDN(theYear,4,2),GregEaster+15,Date2JDN(theYear,3,25)+6-MOD(Date2JDN(theYear,3,25)+0.5,7)) -> 2456397.5 | C18: 25 (ou 24 si 25 = dimanche) mars ou 2e Lundi après Pâques si Pâques est antérieur au 2 avril
A19: St Jean Baptiste | B19: =Date2JDN(theYear,6,24) -> 2456467.5 | C19: 24 juin
A20: SS Pierre et Paul | B20: =Date2JDN(theYear,6,29) -> 2456472.5 | C20: 29 juin
A21: Assomption de Notre-Dame | B21: =Date2JDN(theYear,8,15) -> 2456519.5 | C21: 15août
A22: Toussaint | B22: =Date2JDN(theYear,11,1) -> 2456597.5 | C22: 1er novembre
A23: Fidèles Défunts | B23: =Date2JDN(theYear,11,2) -> 2456598.5 | C23: 2 novembre
A24: Christ-Roi | B24: =Date2JDN(theYear,11,20)+6-MOD(Date2JDN(theYear,11,20)+0.5,7) -> 2456620.5 | C24: Dimanche entre 20 et 26 novembre
A25: 1er Dimanche de l'Avent | B25: =Date2JDN(theYear,11,27)+6-MOD(Date2JDN(theYear,11,27)+0.5,7) -> 2456627.5 | C25: Dimanche entre 27 novembre et 3 décembre
A26: Immaculée conception | B26: =Date2JDN(theYear,12,8) -> 2456634.5 | C26: 8 décembre
A27: Noël | B27: =Date2JDN(theYear,12,24) -> 2456650.5 | C27: 24 décembre
